bitfinex-derivatives/quotes_ETHF0:USTF0_20250602
["timestamp","ask_amount","ask_price","bid_price","bid_amount"]
[1748830050940,0.79206,2523.9,2523.8,0.5]
[1748830051136,2.16326,2523.9,2523.8,0.5]
[1748830051834,1.3712,2523.9,2523.8,1.29209]
[1748830052040,1.46351,2524.1,2523.9,0.79204]
[1748830052441,2.73131,2524.1,2523.9,0.79204]
[1748830052642,1.9393,2524.1,2524.0,0.79203]
[1748830052838,3.2078,2524.5,2524.0,1.98008]
[1748830053040,3.2078,2524.5,2524.1,2.6473]
[1748830053242,18.376,2524.4,2524.3,0.79192]
[1748830053842,19.17491,2524.4,2524.3,0.79192]
[1748830054045,1.9393,2524.6,2524.4,0.79189]
[1748830054250,2.73115,2524.6,2524.5,0.6777]
[1748830054543,21.11415,2524.6,2524.5,0.6777]
[1748830055247,22.25805257,2524.6,2524.5,0.6777]
[1748830056752,0.7919,2524.5,2524.2,5.31635]
[1748830056954,0.79191,2524.4,2524.2,3.2078]
[1748830057141,0.79194,2524.3,2524.2,3.2078]
[1748830057350,0.79197,2524.2,2524.1,1.3739]
[1748830057550,0.79201,2524.1,2523.9,2.10004]
[1748830057849,0.79201,2524.1,2523.9,4.80904]
[1748830058353,0.79203,2524.0,2523.8,1.98307]
[1748830058857,0.79206,2523.9,2523.8,1.191]
[1748830059154,0.79206,2523.9,2523.8,0.5]
[1748830059453,2.10446,2523.9,2523.8,0.5]
[1748830059956,1.3124,2523.9,2523.8,1.29209]
[1748830060249,19.18006,2523.9,2523.8,0.5]
[1748830060454,19.18006,2523.9,2523.8,2.4631]
[1748830060647,5.3122,2524.2,2524.0,0.79201]
[1748830060847,3.2078,2524.2,2524.0,0.79201]
[1748830061151,0.79205,2524.0,2523.8,6.4801]
[1748830061357,0.79203,2524.0,2523.9,0.6849]
[1748830061653,0.79206,2523.9,2523.8,0.5]
[1748830061848,5.34066,2523.9,2523.8,0.5]
[1748830062651,0.79209,2523.8,2523.7,0.00594801]
[1748830062859,2.13289,2523.8,2523.7,0.00594801]
[1748830065361,3.27617499,2523.8,2523.7,0.00594801]
[1748830067052,2.13289,2523.8,2523.7,0.00594801]
[1748830067257,3.27536368,2523.8,2523.7,0.00594801]
[1748830073468,21.65236368,2523.8,2523.7,0.00594801]
[1748830074261,3.27536368,2523.8,2523.7,0.00594801]
[1748830074466,21.65036368,2523.8,2523.7,0.00594801]
[1748830075967,21.65002627,2523.8,2523.7,0.00594801]
[1748830077667,21.63702627,2523.8,2523.7,0.00594801]
[1748830080274,21.63694701,2523.8,2523.7,0.00594801]
[1748830080868,21.62394701,2523.8,2523.7,0.00594801]
[1748830081672,1.14205701,2523.8,2523.7,0.00594801]
[1748830082174,0.79209,2523.8,2523.7,1.91114801]
[1748830082473,0.79209,2523.8,2523.7,3.08174801]
[1748830083171,3.2078,2523.9,2523.7,7.08274801]
[1748830083476,0.79205,2524.0,2523.8,4.4837]
[1748830083665,0.79205,2524.0,2523.8,2.06798]
[1748830083866,0.79206,2523.9,2523.8,42.0759]
[1748830084680,0.79206,2523.9,2523.8,1.2759]
[1748830085173,0.79205,2524.0,2523.8,1.2759]
[1748830085375,0.79206,2523.9,2523.8,1.2759]
[1748830086176,3.8818,2524.2,2523.8,1.2759]
[1748830086374,0.79209,2523.8,2523.7,1.80584801]
[1748830086873,3.26118531,2523.8,2523.7,1.80584801]
[1748830087077,3.26118531,2523.8,2523.7,0.50594801]
[1748830087277,3.92568531,2523.8,2523.7,0.50594801]
[1748830087475,2.78209,2523.8,2523.7,0.50594801]
[1748830087774,3.92566582,2523.8,2523.7,0.50594801]
[1748830088575,1.93566582,2523.8,2523.7,0.50594801]
[1748830088772,20.27966582,2523.8,2523.7,0.50594801]
[1748830090074,20.27766582,2523.8,2523.7,0.50594801]
[1748830091872,21.60276582,2523.8,2523.7,0.50594801]
[1748830092573,3.26076582,2523.8,2523.7,0.00594801]
[1748830092774,21.61076582,2523.8,2523.7,0.00594801]
[1748830093977,20.28566582,2523.8,2523.7,0.00594801]
[1748830094878,20.27566582,2523.8,2523.7,0.00594801]
[1748830096183,19.13209,2523.8,2523.7,0.00594801]
[1748830096373,20.2770586,2523.8,2523.7,0.00594801]
[1748830096672,22.2372586,2523.8,2523.7,0.00594801]
[1748830097674,22.2372586,2523.8,2523.4,0.6729]
[1748830097675,0.79219,2523.5,2523.4,0.6729]
[1748830097876,3.99999,2523.5,2523.4,0.6729]
[1748830098072,0.79228,2523.2,2523.1,2.021]
[1748830098278,19.12228,2523.2,2523.1,1.2976]
[1748830098481,20.26716402,2523.2,2523.1,1.2976]
[1748830098973,0.79234,2523.0,2522.9,1.38834801]
[1748830099178,0.79234,2523.0,2522.9,0.65164801]
[1748830099376,0.79234,2523.0,2522.9,1.15164801]
[1748830099576,1.93722759,2523.0,2522.9,1.15164801]
[1748830100385,2.2472275,2523.0,2522.9,1.15164801]
[1748830100683,1.93722759,2523.0,2522.9,1.15164801]
[1748830103282,1.14488759,2523.0,2522.9,1.15164801]
[1748830103481,1.14488759,2523.0,2522.9,2.50004801]
[1748830103683,1.93722759,2523.0,2522.9,2.50004801]
[1748830104981,19.45884347,2523.0,2522.9,3.29242801]
[1748830105180,19.45884347,2523.0,2522.9,2.50004801]
[1748830105181,18.315,2523.0,2522.9,2.50004801]
[1748830105684,19.10734,2523.0,2522.9,2.50004801]
[1748830106080,20.25107289,2523.0,2522.9,0.50594801]
[1748830106986,20.88907289,2523.0,2522.9,0.50594801]
[1748830107286,19.74534,2523.0,2522.9,0.50594801]
[1748830108383,19.74534,2523.0,2522.3,6.07015]
[1748830108384,0.79253,2522.5,2522.3,6.07015]
[1748830108584,19.10053,2522.5,2522.3,7.40215]
[1748830108784,0.79253,2522.4,2522.3,47.4096]
[1748830109192,0.79253,2522.4,2522.3,2.6406]
[1748830109489,0.79253,2522.4,2522.3,1.3086]
[1748830110587,1.98158,2522.1,2521.5,1.2732]
[1748830110795,0.79278,2521.6,2521.5,1.2732]
[1748830110983,3.2078,2521.8,2521.3,1.3633]
[1748830111191,1.2819,2521.5,2521.3,1.3633]
[1748830111694,2.07472,2521.5,2521.3,1.3633]
[1748830111985,2.07472,2521.5,2521.3,2.15617]
[1748830111986,1.2819,2521.5,2521.3,2.15617]
[1748830112193,3.2078,2521.4,2521.0,1.0]
[1748830112392,1.347,2521.3,2521.0,1.0]
[1748830112592,18.37,2521.2,2521.1,1.8957]
[1748830112990,3.2078,2521.4,2521.1,1.8957]
[1748830113190,18.397,2521.3,2521.2,2.05509]
[1748830113393,18.397,2521.3,2521.1,1.8147]
[1748830113694,18.397,2521.3,2521.1,5.7847]
[1748830113695,19.1899,2521.3,2521.1,5.7847]
[1748830113895,18.397,2521.3,2521.1,7.83984]
[1748830114099,18.397,2521.3,2521.2,2.05511]
[1748830114303,18.397,2521.3,2521.2,1.2622]
[1748830114890,18.397,2521.3,2521.2,2.05511]
[1748830115693,18.397,2521.3,2521.2,1.2622]
[1748830116089,18.397,2521.3,2521.2,2.05511]
[1748830117997,3.2078,2521.7,2521.2,5.2332]
[1748830118296,19.1778,2521.6,2521.4,0.79283]
[1748830118495,19.1778,2521.6,2521.5,1.324]
[1748830119098,19.1768,2521.6,2521.5,1.324]
[1748830119601,18.384,2521.6,2521.5,2.11682]
[1748830119806,2.0557,2521.9,2521.6,0.79277]
[1748830120103,0.79275,2521.7,2521.6,0.6356]
[1748830120602,2.08975,2521.7,2521.6,0.6356]
[1748830120898,4.5048,2521.7,2521.1,4.3413]
[1748830121096,4.5048,2521.7,2521.4,0.79284]
[1748830121291,0.79279,2521.6,2521.1,2.4575]
[1748830121503,3.2078,2521.4,2521.2,2.0723]
[1748830121707,4.00067,2521.4,2521.2,0.79291]
[1748830122004,1.3403,2521.3,2521.2,0.79291]
[1748830122200,0.79291,2521.2,2521.1,1.1335]
[1748830122402,18.4,2521.2,2521.1,1.1335]
[1748830122607,18.4,2521.2,2521.1,1.92644]
[1748830123102,18.4,2521.2,2521.1,3.20584]
[1748830123299,18.4,2521.2,2521.1,1.1335]
[1748830123501,18.4,2521.2,2521.1,1.92644]
[1748830124304,21.6128,2521.7,2521.2,1.98228]
[1748830124600,21.6128,2521.7,2521.4,0.79285]
[1748830124800,0.79279,2521.6,2521.4,0.79285]
[1748830125000,0.79279,2521.6,2521.4,1.45495]
[1748830125196,0.79279,2521.6,2521.4,1.45494]
[1748830125507,2.15529,2521.6,2521.4,1.95494]
[1748830125902,1.3625,2521.6,2521.4,1.1621]
[1748830126406,1.3625,2521.6,2521.4,1.95495]
[1748830126602,19.7585,2521.6,2521.4,3.22395]
[1748830126796,19.7585,2521.6,2521.4,2.4311]
[1748830127000,20.5513,2521.6,2521.4,2.4311]
[1748830127402,20.5513,2521.6,2521.4,3.22394]
[1748830127605,18.396,2521.6,2521.5,0.79282]
[1748830127901,0.1982,2522.0,2521.5,1.3588]
[1748830128105,0.99086,2522.0,2521.7,0.79273]
[1748830128308,2.30486,2522.0,2521.7,4.76473]
[1748830128507,5.51266,2522.0,2521.7,4.76473]
[1748830129007,5.51266,2522.0,2521.7,3.972]
[1748830129008,4.72,2522.0,2521.7,3.972]
[1748830129407,5.51268,2522.0,2521.5,1.3588]
[1748830129609,5.51268,2522.0,2521.7,0.79273]
[1748830129807,4.72,2522.0,2521.9,0.79269]
[1748830130010,5.51266,2522.0,2521.8,0.79271]
[1748830130610,4.72,2522.0,2521.7,3.972]
[1748830130812,21.8,2522.0,2521.9,0.79269]
[1748830131113,3.406,2522.0,2521.9,0.79269]
[1748830131408,2.33654671,2522.8,2522.0,3.96331]
[1748830131612,2.33654671,2522.9,2522.8,0.79241]
[1748830131806,2.33654671,2522.9,2522.5,41.458]
[1748830132006,4.486,2523.0,2522.6,4.76445]
[1748830132007,0.79242,2522.8,2522.6,4.76445]
[1748830132203,0.7924,2522.9,2522.6,4.76445]
[1748830132409,1.2782,2522.9,2522.8,0.79241]
[1748830132610,0.00594801,2523.0,2522.8,0.79241]
[1748830132914,0.00594801,2523.0,2522.9,0.79238]
[1748830133115,0.00594801,2523.0,2522.8,0.79239]
[1748830133515,0.20404801,2523.0,2522.7,2.05052]
[1748830133717,3.2078,2522.9,2522.5,1.35884801]
[1748830134012,0.79241,2522.8,2522.6,4.76346]
[1748830134215,4.0002,2522.9,2522.6,4.76346]
[1748830134408,1.54154801,2523.0,2522.6,3.971]
[1748830134409,0.79242,2522.8,2522.6,3.971]
[1748830134613,2.33390801,2523.0,2522.6,3.971]
[1748830134813,2.33390801,2523.0,2522.6,5.349]
[1748830135107,0.20404801,2523.0,2522.9,0.79238]
[1748830135515,0.20404801,2523.0,2522.7,2.17043]
[1748830135516,0.99639801,2523.0,2522.7,2.17043]
[1748830135909,0.20404801,2523.0,2522.9,0.79238]
[1748830137918,0.20404801,2523.0,2522.9,1.29238]
[1748830138818,0.99638801,2523.0,2522.9,0.5]
[1748830140317,0.20404801,2523.0,2522.9,0.5]
[1748830140717,0.99638801,2523.0,2522.9,0.5]
[1748830140920,0.20404801,2523.0,2522.9,0.5]
[1748830141113,0.99638801,2523.0,2522.9,0.5]
[1748830142920,0.20404801,2523.0,2522.9,0.5]
[1748830143121,0.20404801,2523.0,2522.9,1.29238]
[1748830145815,0.99638801,2523.0,2522.9,0.5]
[1748830146523,0.20404801,2523.0,2522.9,1.29238]
[1748830146717,0.99638801,2523.0,2522.9,0.5]
[1748830146917,2.24948801,2523.0,2522.9,0.5]
[1748830147320,0.79247,2522.6,2522.5,0.00594801]
[1748830147518,0.79264,2522.1,2521.8,5.3102]
[1748830147724,3.2078,2522.3,2521.8,5.3102]
[1748830147924,0.79269,2521.9,2521.8,5.3102]
[1748830148522,1.2531,2522.2,2521.8,5.3102]
[1748830148723,0.79264,2522.1,2521.9,0.79268]
[1748830148920,0.79264,2522.1,2521.8,5.3102]
[1748830149228,0.79268,2522.0,2521.9,0.5]
[1748830149427,2.05338,2522.0,2521.9,0.5]
[1748830153432,1.2607,2522.0,2521.9,0.5]
[1748830153626,18.332,2522.2,2521.9,0.5]
[1748830153827,3.2078,2522.3,2522.1,0.79263]
[1748830154030,3.2078,2522.3,2521.9,1.826]
[1748830154031,0.79263,2522.1,2521.9,1.29268]
[1748830154228,1.3645,2522.2,2521.9,1.29267]
[1748830154427,2.15711,2522.2,2521.9,42.09267]
[1748830154732,0.79263,2522.1,2522.0,1.326]
[1748830154923,1.3645,2522.2,2522.0,1.326]
[1748830155130,0.79263,2522.1,2522.0,1.326]
[1748830156030,0.99083,2522.1,2522.0,1.326]
[1748830156333,0.79266,2522.0,2521.9,4.506]
[1748830156832,0.79266,2522.0,2521.9,0.5]
[1748830157037,0.79266,2522.0,2521.9,4.506]
[1748830157333,0.79266,2522.0,2521.9,0.5]
[1748830157528,0.79266,2522.0,2521.9,4.506]
[1748830157734,0.79266,2522.0,2521.9,0.5]
[1748830157937,0.79266,2522.0,2521.9,4.506]
[1748830158138,4.00046,2522.0,2521.9,0.5]
[1748830158335,5.34006,2522.0,2521.9,0.5]
[1748830159234,6.48359685,2522.0,2521.9,0.5]
[1748830160633,0.79294,2521.1,2521.0,1.0]
[1748830160937,19.26794,2521.1,2521.0,1.0]
[1748830161537,20.52994,2521.1,2521.0,1.0]
[1748830162535,18.473,2521.1,2521.0,1.0]
[1748830162735,19.26594,2521.1,2521.0,1.0]
[1748830163033,19.26594,2521.1,2521.0,1.5]
[1748830163334,20.52794,2521.1,2521.0,1.5]
[1748830164332,1.98265,2520.8,2520.0,4.006]
[1748830164532,0.79314,2520.5,2520.1,1.3432]
[1748830164838,4.5636,2520.7,2520.2,44.0078]
[1748830164839,0.79316,2520.4,2520.2,44.0078]
[1748830165135,4.5636,2520.7,2520.2,44.80101]
[1748830165339,0.79319,2520.3,2520.2,44.0078]
[1748830165538,18.522,2520.4,2520.2,3.2078]
[1748830165839,0.79312,2520.6,2520.1,1.3432]
[1748830166034,4.5636,2520.7,2520.1,1.3432]
[1748830166035,19.31215,2520.5,2520.2,41.59321]
[1748830166234,18.519,2520.5,2519.9,8.5355]
[1748830166536,0.79319,2520.4,2520.1,2.13644]
[1748830166738,0.79319,2520.3,2520.2,1.3432]
[1748830167537,19.8882,2520.5,2520.0,4.80026]
[1748830167838,19.8882,2520.5,2520.0,6.07496]
[1748830167839,0.79323,2520.2,2520.0,6.07496]
[1748830168044,0.79321,2520.3,2520.1,0.79325]
[1748830168234,20.68135,2520.5,2520.3,0.79318]
[1748830168435,0.79317,2520.4,2520.2,0.79322]
[1748830169139,19.8882,2520.5,2519.9,5.0295]
[1748830169339,0.79329,2520.0,2519.9,3.7078]
[1748830169542,1.3692,2520.3,2519.9,3.7078]
[1748830169837,18.54,2520.3,2520.2,0.59491]
[1748830170935,18.547,2520.5,2520.1,1.98315]
[1748830171136,2.1623,2520.6,2520.4,0.79314]
[1748830171335,18.546,2520.5,2520.4,0.79316]
[1748830171742,4.4975,2520.9,2520.4,5.0]
[1748830172035,0.79307,2520.7,2520.6,0.79309]
[1748830172239,18.55,2520.8,2520.7,0.79307]
[1748830172438,18.55,2520.8,2520.2,3.89927278]
[1748830172637,19.8397,2520.8,2520.5,0.79312]
[1748830172838,0.79309,2520.7,2520.5,0.79312]
[1748830173034,0.79309,2520.7,2520.6,0.7931]
[1748830173239,0.79309,2520.7,2520.5,0.79312]
[1748830173431,2.17009,2520.7,2520.5,0.79312]
[1748830174346,1.377,2520.7,2520.5,0.79312]
[1748830175839,1.377,2520.7,2520.6,0.7931]
[1748830176140,1.377,2520.7,2520.2,0.00857278]
[1748830176339,3.2078,2520.4,2520.2,0.80178278]
[1748830176538,1.3906,2520.3,2520.2,0.80178278]
[1748830176740,3.2078,2520.7,2520.2,0.00857278]
[1748830177042,5.39148,2520.7,2520.4,0.79314]
[1748830177241,4.5984,2520.7,2520.4,0.79314]
[1748830177442,5.39148,2520.7,2520.4,0.79314]
[1748830177846,3.2078,2520.7,2520.6,0.7931]
[1748830178048,18.698,2520.7,2520.6,0.7931]
[1748830178444,0.6813,2520.8,2520.6,0.7931]
[1748830178748,2.0719,2520.8,2520.7,0.79307]
[1748830178949,3.2078,2521.0,2520.7,0.79307]
[1748830179154,4.5984,2521.0,2520.8,0.79304]
[1748830179343,4.5984,2521.0,2520.4,6.72397]
[1748830179647,20.0906,2521.0,2520.5,1.98283]
[1748830180240,20.88358,2521.0,2520.8,0.79301]
[1748830180745,1.3906,2521.0,2520.8,0.79302]
[1748830180943,1.3906,2521.0,2520.9,0.793]
[1748830181344,2.18358,2521.0,2520.8,0.79302]
[1748830182043,1.3906,2521.0,2520.5,3.2078]
[1748830182244,2.18358,2521.0,2520.8,0.79303]
[1748830182848,2.18358,2521.0,2520.8,1.29303]
[1748830183149,2.18359,2521.0,2520.8,1.29303]
[1748830184349,2.18359,2521.0,2520.8,0.5]
[1748830185052,2.18359,2521.0,2520.8,1.29303]
[1748830185448,1.3906,2521.0,2520.9,0.793]
[1748830185644,18.692,2521.1,2521.0,0.79297]
[1748830185851,19.80135813,2521.1,2521.0,0.79297]
[1748830186144,1.14235813,2521.1,2521.0,0.79297]
[1748830186547,19.79735813,2521.1,2521.0,0.79297]
[1748830186753,4.50544801,2521.3,2521.2,0.79291]
[1748830186949,19.80407169,2521.3,2521.0,0.79294]
[1748830187155,1.14316045,2521.2,2521.1,0.79294]
[1748830187355,1.14316045,2521.2,2521.1,40.8]
[1748830187546,1.14316045,2521.2,2521.1,41.59294]
[1748830187847,1.93607045,2521.2,2521.0,0.79295]
[1748830188044,1.14397851,2521.1,2520.9,0.6852]
[1748830188252,1.14397851,2521.1,2520.9,1.4782]
[1748830188253,0.79295,2521.1,2520.9,1.4782]
[1748830188454,1.2986,2521.0,2520.9,42.2782]
[1748830188849,1.2986,2521.0,2520.9,1.4782]
[1748830189056,2.09157,2521.0,2520.9,0.6852]
[1748830189256,1.14469176,2521.0,2520.9,0.6852]
[1748830189560,1.48324,2521.1,2520.9,1.47819]
[1748830189751,1.14527245,2521.0,2520.9,1.47819]
[1748830189951,1.48324,2521.1,2520.9,0.6852]
[1748830190151,1.14527348,2521.0,2520.9,1.4782]
[1748830190347,0.793,2520.9,2520.8,0.5]
[1748830190566,3.23687348,2520.9,2520.8,0.5]
[1748830190749,2.44387348,2520.9,2520.8,0.5]
[1748830190949,2.44387348,2520.9,2520.8,1.29304]
[1748830191146,1.14527348,2520.9,2520.8,1.29304]
[1748830191552,19.79227348,2520.9,2520.8,1.29304]
[1748830191754,1.14527348,2520.9,2520.8,1.29304]
[1748830191956,1.14527348,2520.9,2520.8,2.60294]
[1748830192359,18.645,2521.0,2520.9,0.793]
[1748830192661,19.7910396,2521.0,2520.9,0.793]
[1748830193156,20.5840096,2521.0,2520.9,0.793]
[1748830193558,19.7910396,2521.0,2520.8,1.8099]
[1748830193752,1.9390396,2520.9,2520.8,0.5]
[1748830193948,3.2532396,2520.9,2520.8,0.5]
[1748830194456,3.25334326,2520.9,2520.8,1.29304]
[1748830194851,2.46034326,2520.9,2520.8,1.29304]
[1748830195058,1.14614326,2520.9,2520.8,1.29304]
[1748830195258,1.14614326,2520.9,2520.8,2.65424]
[1748830195563,1.14613496,2520.9,2520.8,2.65424]
[1748830195760,1.93913496,2520.9,2520.8,2.65424]
[1748830196054,1.14613496,2520.9,2520.8,2.65424]
[1748830196958,1.93913496,2520.9,2520.8,2.65424]
[1748830197159,1.14613496,2520.9,2520.8,2.65424]
[1748830197559,1.14613496,2520.9,2520.8,2.15424]
[1748830197762,1.14613496,2520.9,2520.8,2.65424]
[1748830198160,1.48326,2521.1,2521.0,0.79297]
[1748830198355,22.53532155,2521.1,2521.0,0.79297]
[1748830198555,21.74136155,2521.1,2521.0,0.79297]
[1748830198861,22.53435697,2521.1,2520.8,1.8612]
[1748830199160,20.5952,2521.1,2521.0,0.79297]
[1748830199355,21.74144077,2521.1,2521.0,0.79297]
[1748830199562,1.14624077,2521.1,2521.0,0.79297]
[1748830199860,19.74324077,2521.1,2521.0,0.79297]
[1748830201362,21.10174077,2521.1,2521.0,0.79297]
[1748830201660,21.10275787,2521.1,2521.0,0.79297]
[1748830202354,2.50575787,2521.1,2521.0,0.79297]
[1748830202555,21.08875787,2521.1,2521.0,0.79297]
[1748830203960,19.73025787,2521.1,2521.0,0.79297]
[1748830205663,19.72625787,2521.1,2521.0,0.79297]
[1748830206158,19.72644689,2521.1,2521.0,0.79297]
[1748830206958,19.71844689,2521.1,2521.0,0.79297]
[1748830208062,21.02194689,2521.1,2521.0,0.79297]
[1748830209564,19.71844689,2521.1,2521.0,0.79297]
[1748830209860,19.71844689,2521.1,2521.0,2.15147]
[1748830210262,19.72066545,2521.1,2521.0,2.15147]
[1748830210661,1.14966545,2521.1,2521.0,2.15147]
[1748830211760,3.2078,2521.2,2521.1,0.79294]
[1748830211964,0.00594801,2521.3,2521.2,0.79291]
[1748830212161,1.15613715,2521.3,2521.2,0.79291]
[1748830212459,1.15613715,2521.3,2521.2,1.48471]
[1748830212660,1.15613715,2521.3,2521.2,2.84321]
[1748830212864,1.15613715,2521.3,2521.2,1.98471]
[1748830213368,2.52463715,2521.3,2521.2,1.98471]
[1748830214571,0.00594801,2521.3,2521.2,1.98471]
[1748830214771,1.15505206,2521.3,2521.2,3.25101]
[1748830215267,0.00594801,2521.3,2521.2,3.25101]
[1748830219967,0.00594801,2521.3,2521.2,1.29291]
[1748830220766,0.00594801,2521.3,2521.2,2.65401]
[1748830224567,0.00594801,2521.3,2521.2,5.42791]
[1748830224968,0.00594801,2521.3,2521.2,1.29291]
[1748830225279,11.34650308,2521.3,2520.6,4.135]
[1748830225573,11.34650308,2521.3,2520.2,43.20337278]
[1748830225574,4.00083,2520.9,2520.7,0.79305]
[1748830225763,19.8623,2520.8,2520.7,0.79305]
[1748830226074,23.17504507,2520.8,2520.7,0.79305]
[1748830226268,22.38200507,2520.8,2520.7,0.79305]
[1748830227366,23.17504507,2520.8,2520.7,0.79305]
[1748830227566,22.38200507,2520.8,2520.7,0.79305]
[1748830227870,23.17441587,2520.8,2520.6,0.79308]
[1748830228062,1.14987587,2520.7,2520.6,0.79308]
[1748830228268,2.40907587,2520.7,2520.5,4.92812]
[1748830228471,2.05227,2520.7,2520.6,0.5]
[1748830228669,3.20183845,2520.7,2520.6,0.5]
[1748830229077,7.72534115,2520.7,2520.2,4.00959278]
[1748830229275,0.79318,2520.4,2520.2,3.21637278]
[1748830229569,4.35736845,2520.6,2520.2,3.21637278]
[1748830229570,0.6936,2520.3,2520.2,4.00959278]
[1748830229765,1.9528,2520.3,2520.2,4.00959278]
[1748830229973,0.6423,2520.8,2520.2,5.84083278]
[1748830230271,19.69759206,2520.7,2520.5,0.79311]
[1748830230472,1.14859206,2520.6,2520.4,0.79313]
[1748830230774,18.549,2520.7,2520.6,0.7931]
[1748830231078,19.69709673,2520.7,2520.5,1.29311]
[1748830231372,1.14809673,2520.6,2520.5,1.29311]
[1748830231970,18.542,2520.6,2520.5,1.29311]
[1748830232166,19.68984134,2520.6,2520.5,1.29311]
[1748830232475,18.542,2520.6,2520.5,5.39511]
[1748830232676,19.9267,2520.6,2520.5,5.39511]
[1748830233173,3.2078,2520.9,2520.5,4.602]
[1748830233370,3.2078,2520.9,2520.8,0.79304]
[1748830234070,21.7498,2521.0,2520.9,0.793]
[1748830234276,23.0503,2521.0,2520.9,4.895]
[1748830234676,20.62947,2521.0,2520.9,4.102]
[1748830234875,19.8365,2521.0,2520.9,4.895]
[1748830235073,20.62947,2521.0,2520.9,4.895]
[1748830235877,20.62947,2521.0,2520.9,4.102]
[1748830236880,20.6295,2521.0,2520.8,4.89503]
[1748830237078,19.8365,2521.0,2520.9,0.793]
[1748830238280,24.8365,2521.0,2520.5,1.29312]
[1748830238574,0.79309,2520.7,2520.5,0.5]
[1748830238779,1.9613,2520.6,2520.5,1.29313]
[1748830239368,1.9613,2520.6,2520.5,5.39513]
[1748830239577,0.793,2521.0,2520.8,0.79302]
[1748830239774,22.41733207,2520.9,2520.7,0.79305]
[1748830239975,21.27031,2520.9,2520.6,0.79308]
[1748830240783,0.79304,2520.8,2520.6,0.79308]
[1748830240985,1.2736,2520.7,2520.6,0.79308]
[1748830241584,1.2736,2520.7,2520.5,5.39511]
[1748830241884,1.2736,2520.7,2520.5,5.3951]
[1748830242079,1.2736,2520.7,2520.6,0.7931]
[1748830242272,18.508,2520.8,2520.7,0.79307]
[1748830242479,19.7816,2520.8,2520.6,0.79308]
[1748830242784,19.7816,2520.8,2520.6,1.29308]
[1748830242984,20.57465,2520.8,2520.6,1.29308]
[1748830243380,0.79307,2520.7,2520.6,1.29308]
[1748830243785,1.2891,2520.7,2520.6,1.29308]
[1748830244583,0.6275,2520.9,2520.8,0.79304]
[1748830244777,19.7871,2521.1,2521.0,0.79297]
[1748830244979,2.08204,2521.1,2521.0,0.79297]
[1748830246280,2.08204,2521.1,2520.9,4.102]
[1748830246585,2.08204,2521.1,2520.9,4.89498]
[1748830246979,2.08204,2521.1,2521.0,0.79297]
[1748830247485,2.4361336,2521.1,2521.0,0.79297]
[1748830247785,3.2290736,2521.1,2521.0,0.79297]
[1748830248086,1.2891,2521.1,2521.0,0.79297]
[1748830248977,2.08204,2521.1,2521.0,0.79297]
[1748830249387,1.2891,2521.1,2521.0,0.79297]
[1748830250686,2.43873576,2521.1,2521.0,0.79297]
[1748830250979,3.23167576,2521.1,2521.0,0.79297]
[1748830251181,2.43873576,2521.1,2520.8,1.9759]
[1748830251379,2.43873576,2521.1,2520.6,1.1821]
[1748830251380,0.79305,2520.8,2520.7,4.102]
[1748830251586,0.79307,2520.7,2520.6,0.5]
[1748830251776,2.79677,2520.7,2520.6,4.602]
[1748830252181,2.79677,2520.7,2520.6,5.3951]
[1748830252182,2.78996083,2520.7,2520.6,5.3951]
[1748830252376,2.78996083,2520.7,2520.6,0.5]
[1748830252377,3.94228005,2520.7,2520.6,0.5]
[1748830252583,4.61988005,2520.7,2520.6,0.5]
[1748830253484,3.46756083,2520.7,2520.6,0.5]
[1748830253689,21.62768105,2520.7,2520.6,0.5]
[1748830253884,22.42075105,2520.7,2520.6,0.5]
[1748830254089,21.62768105,2520.7,2520.6,0.5]
[1748830254285,3.94875105,2520.7,2520.6,0.5]
[1748830254486,1.15198105,2520.7,2520.6,1.9729]
[1748830254884,1.9611,2521.0,2520.8,0.79303]
[1748830255193,1.94653748,2520.9,2520.8,4.102]
[1748830255385,1.15353748,2520.9,2520.8,4.102]
[1748830255586,1.94653748,2520.9,2520.8,4.102]
[1748830255988,1.15353748,2520.9,2520.8,4.102]
[1748830256289,1.94653748,2520.9,2520.8,4.102]
[1748830257991,1.15353748,2520.9,2520.8,5.39504]
[1748830258292,1.94653748,2520.9,2520.8,5.894]
[1748830260389,1.15353748,2520.9,2520.8,5.894]
[1748830260789,1.15353748,2520.9,2520.8,6.68704]
[1748830261198,1.15491793,2520.9,2520.8,6.68704]
[1748830262392,1.94791793,2520.9,2520.8,6.68704]
[1748830262793,1.94791793,2520.9,2520.8,5.894]
[1748830262991,23.5509,2521.2,2520.8,6.68704]
[1748830263192,0.793,2520.9,2520.8,5.894]
[1748830263596,1.94877417,2520.9,2520.8,5.894]
[1748830264194,1.94877417,2520.9,2520.8,4.602]
[1748830264390,1.94877417,2520.9,2520.8,0.5]
[1748830264893,0.793,2520.9,2520.8,0.5]
[1748830265491,1.94867204,2520.9,2520.8,0.5]
[1748830265793,2.63527204,2520.9,2520.8,0.5]
[1748830266199,5.84307204,2520.9,2520.8,0.5]
[1748830268796,0.79325,2520.2,2519.5,1.98357]
[1748830269001,0.79325,2520.2,2519.9,6.1382]
[1748830269300,18.424,2520.3,2520.0,0.79329]
[1748830269500,0.79324,2520.2,2520.0,0.79329]
[1748830270100,19.21721,2520.3,2520.1,0.79326]
[1748830270297,20.56041,2520.3,2520.0,0.79328]
[1748830270498,19.7672,2520.3,2520.0,1.2543]
[1748830270699,3.2078,2520.1,2519.1,7.15428491]
[1748830270898,3.2078,2520.1,2518.7,3.2078]
[1748830270899,0.7936,2519.0,2518.7,3.2078]